fUST/lending_fUST_20251011
["ID","MTS","AMOUNT","RATE_DAILY","PERIOD"]
[390711079,1760128232981,-150.0,0.00018959,2]
[390711080,1760128232991,-251.06,0.00019053,2]
[390711082,1760128233000,-298.03512572,0.00019151,10]
[390711084,1760128233011,-172.5,0.00019559,2]
[390711086,1760128233021,-129.32525217,0.0002,2]
[390711090,1760128233047,-442.88554272,0.0002,2]
[390711154,1760128238649,-2191.31827454,0.0002,2]
[390711155,1760128238660,-690.50866658,0.0002,2]
[390711156,1760128238672,-1088.47541768,0.0002,2]
[390711157,1760128238683,-1456.79459003,0.0002,2]
[390711158,1760128238695,-1512.67597889,0.0002,2]
[390711159,1760128238707,-3090.2528109,0.0002,2]
[390711160,1760128238721,-10082.1560482,0.0002,2]
[390711161,1760128238734,-2021.2572963,0.0002,2]
[390711162,1760128238744,-163.34872747,0.00020059,2]
[390711163,1760128238755,-195.0,0.00020159,2]
[390711164,1760128238765,-196.33219379,0.00020759,2]
[390711165,1760128238775,-502.13,0.00020785,2]
[390711166,1760128238785,-10492.0,0.00021,10]
[390711167,1760128238795,-160.0,0.00021481,2]
[390711168,1760128238806,-160.0,0.00021484,2]
[390711169,1760128238815,-298.03512572,0.00021484,2]
[390711170,1760128238825,-526.02426037,0.00021626,2]
[390711171,1760128238834,-753.19,0.00022517,2]
[390711172,1760128238844,-526.02426037,0.00023,10]
[390711173,1760128238853,-7106.88366696,0.0002301,3]
[390711174,1760128238863,-1004.25,0.0002425,2]
[390711175,1760128238873,-5055.16981436,0.00025,2]
[390711176,1760128238883,-4400.04066453,0.00025,2]
[390711177,1760128238892,-200.0,0.00025975,15]
[390711178,1760128238902,-1255.31,0.00025982,2]
[390711179,1760128238912,-23095.97892836,0.00026,60]
[390711180,1760128238921,-500.0,0.00026396,2]
[390711181,1760128238930,-198.25310071,0.0002739,2]
[390711182,1760128238940,-162.18406984,0.0002739,7]
[390711184,1760128238949,-150.0,0.0002739,2]
[390711186,1760128238959,-500.0,0.00027492,7]
[390711188,1760128238970,-1506.38,0.00027714,2]
[390711190,1760128238980,-1000.0,0.00028,2]
[390711191,1760128238990,-500.0,0.00028314,7]
[390711192,1760128238999,-338.445,0.00028471,19]
[390711193,1760128239009,-411.0,0.00028471,2]
[390711194,1760128239019,-1964.53,0.0002849,10]
[390711195,1760128239028,-1637.11,0.0002849,10]
[390711196,1760128239037,-50295.41479935,0.000285,7]
[390711198,1760128239051,-480.0,0.000285,7]
[390711200,1760128239066,-1529.81688329,0.000285,7]
[390711202,1760128239077,-6842.62487853,0.000285,7]
[390711204,1760128239087,-188.96159359,0.00028518,60]
[390711206,1760128239096,-736.5751038,0.00028519,2]
[390711208,1760128239106,-168.0,0.00028615,2]
[390711210,1760128239115,-302.84859387,0.00028748,22]
[390711212,1760128239124,-4000.0,0.0002876,5]
[390711214,1760128239133,-1293.84598785,0.0002876,2]
[390711216,1760128239143,-500.0,0.00028767,30]
[390711218,1760128239152,-23697.7718784,0.00028772,120]
[390711220,1760128239162,-169.47025755,0.000288,7]
[390711222,1760128239172,-375.14795489,0.00028821,2]
[390711224,1760128239181,-217.85334618,0.00028821,2]
[390711226,1760128239190,-1176.26239477,0.00028822,30]
[390711228,1760128239203,-1396.96760523,0.00028822,30]
[390711230,1760128239213,-360.21253829,0.00028873,5]
[390711232,1760128239223,-500.0,0.00028873,5]
[390711234,1760128239233,-500.0,0.00028873,5]
[390711236,1760128239241,-500.0,0.00028873,5]
[390711238,1760128239251,-500.0,0.00028873,5]
[390711240,1760128239260,-500.0,0.00028873,5]
[390711242,1760128239270,-500.0,0.00028873,5]
[390711244,1760128239280,-500.0,0.00028873,2]
[390711246,1760128239289,-500.0,0.00028873,5]
[390711248,1760128239299,-500.0,0.00028873,5]
[390711251,1760128239308,-500.0,0.00028873,5]
[390711253,1760128239318,-496.68525404,0.00028873,5]
[390711764,1760128244164,-411.41029809,0.00025999,2]
[390711765,1760128244229,-88.58970191,0.00025999,2]
[390711766,1760128244239,-3.31474596,0.00028873,5]
[390711767,1760128244248,-499.21555213,0.00028873,5]
[390711768,1760128244260,-0.78444787,0.00028873,5]
[390711769,1760128244269,-282.39274904,0.00028873,3]
[390712071,1760128246757,-217.60725096,0.00028873,3]
[390712073,1760128246766,-500.0,0.00028873,5]
[390712075,1760128246775,-500.0,0.00028873,5]
[390712077,1760128246784,-500.0,0.00028873,5]
[390712080,1760128246793,-512.37143401,0.00028873,5]
[390712081,1760128246804,-157.7526329,0.00028877,30]
[390712083,1760128246813,-153.0,0.00028877,30]
[390712085,1760128246822,-153.0,0.00028877,30]
[390712088,1760128246833,-153.0,0.00028877,30]
[390712090,1760128246842,-593.45,0.00028882,3]
[390712092,1760128246851,-1000.0,0.00028892,2]
[390712093,1760128246860,-1000.0,0.00028892,2]
[390712096,1760128246869,-900.32189185,0.00028892,2]
[390712098,1760128246879,-454.26,0.00028892,3]
[390712100,1760128246888,-16526.95252648,0.00028892,2]
[390712102,1760128246899,-5537.85316124,0.00028892,2]
[390712105,1760128246917,-4766.33556851,0.00028892,2]
[390712107,1760128246928,-2355.1919997,0.00028892,2]
[390712109,1760128246938,-830.6395,0.00028892,2]
[390712111,1760128246949,-7023.76283799,0.00028892,2]
[390717273,1760129437863,-183.96,0.00019626,2]
[390717274,1760129437872,-367.92,0.0002141,2]
[390717275,1760129437882,-184.24090922,0.00022847,2]
[390717276,1760129437893,-341.78335115,0.00022847,2]
[390717277,1760129437902,-551.88,0.00023194,2]
[390717278,1760129437912,-160.0,0.00023412,2]
[390717279,1760129437922,-298.03512572,0.00023416,2]
[390717280,1760129437932,-3206.66634995,0.00023535,2]
[390717281,1760129437941,-735.84,0.00024979,2]
[390717282,1760129437951,-230.716985,0.000262,2]
[390717283,1760129437960,-1000.0,0.00026278,30]
[390717284,1760129437969,-308.6975009,0.00026293,2]
[390717286,1760129437979,-160.0,0.00026296,2]
[390717288,1760129437988,-500.0,0.00026396,2]
[390717290,1760129437999,-919.8,0.00026763,2]
[390717292,1760129438008,-926.0,0.00026826,2]
[390717294,1760129438023,-926.0,0.00026861,2]
[390717295,1760129438032,-926.0,0.00026979,2]
[390717296,1760129438044,-1298.77492227,0.00027041,2]
[390717297,1760129438060,-1852.22507773,0.00027041,2]
[390717298,1760129438073,-926.0,0.00027469,7]
[390717299,1760129438083,-500.0,0.00027492,7]
[390717300,1760129438093,-251.91907004,0.00027546,2]
[390717301,1760129438111,-500.0,0.00027546,2]
[390717302,1760129438123,-272.36761398,0.00027546,2]
[390717637,1760129443443,-227.63238602,0.00027546,2]
[390717639,1760129443452,-500.0,0.00027546,2]
[390717641,1760129443461,-243.0,0.00027639,2]
[390717643,1760129443471,-243.0,0.00027702,2]
[390717645,1760129443480,-243.0,0.00027751,2]
[390717647,1760129443489,-500.0,0.00027785,2]
[390717649,1760129443498,-270.756,0.00027796,17]
[390717650,1760129443507,-243.0,0.00027796,2]
[390717652,1760129443516,-243.0,0.00028108,2]
[390717655,1760129443530,-243.0,0.00028124,7]
[390717656,1760129443540,-552.43132785,0.00028207,2]
[390717658,1760129443549,-243.0,0.00028317,2]
[390717660,1760129443558,-165.8325925,0.0002841,5]
[390717662,1760129443567,-500.0,0.0002841,20]
[390717664,1760129443576,-243.0,0.00028497,7]
[390717666,1760129443586,-1000.0,0.00028499,2]
[390717668,1760129443595,-243.0,0.00028516,2]
[390717671,1760129443604,-1103.76,0.00028547,2]
[390717672,1760129443613,-243.0,0.00028576,2]
[390717674,1760129443623,-243.0,0.00028703,7]
[390717676,1760129443632,-1690.64,0.00028772,10]
[390717678,1760129443642,-1408.87,0.00028772,10]
[390717680,1760129443651,-1174.06,0.00028772,10]
[390717682,1760129443660,-320.91531734,0.00028781,2]
[390717684,1760129443669,-152.49734232,0.00028781,2]
[390717686,1760129443678,-2988.49278187,0.00028782,2]
[390717690,1760129443706,-933.69040795,0.00028782,2]
[390720052,1760129885839,584.208294,0.00013699,2]
[390720430,1760130171881,151.0,0.00024,120]
[390720432,1760130173297,151.0,0.000253,120]
[390720434,1760130174725,151.0,0.000267,120]
[390720435,1760130176146,151.0,0.00028,120]
[390721095,1760130637784,-164.0,0.00017753,3]
[390721104,1760130637794,-300.0,0.00019199,2]
[390721110,1760130637804,-1200.0,0.00019199,2]
[390721114,1760130637813,-198.99999999,0.000192,2]
[390721117,1760130637823,-4813.64976011,0.000192,2]
[390721120,1760130637835,-389.0,0.000192,2]
[390721122,1760130637851,-12251.37478832,0.000192,2]
[390721124,1760130637861,-150.0,0.0001954,2]
[390721126,1760130637870,-200.0,0.00019543,2]
[390721128,1760130637879,-223.63,0.00019889,2]
[390721130,1760130637888,-172.5,0.0002014,2]
[390721132,1760130637897,-584.208294,0.00020187,2]
[390721134,1760130637907,-275.55159052,0.0002074,2]
[390721136,1760130637916,-2274.91191449,0.00020745,2]
[390721138,1760130637925,-447.25,0.00021697,2]
[390721140,1760130637934,-670.88,0.00023505,2]
[390721142,1760130637944,-1459.091001,0.00024,2]
[390721144,1760130637953,-200.0,0.00024658,15]
[390721146,1760130637963,-298.03512572,0.00024902,2]
[390721148,1760130637972,-160.0,0.00024902,2]
[390721150,1760130637984,-894.51,0.00025313,2]
[390721152,1760130637994,-500.0,0.00026396,2]
[390721155,1760130638004,-584.208294,0.00026676,2]
[390721158,1760130638013,-1118.13,0.00027121,2]
[390721162,1760130638023,-526.02426037,0.00027256,2]
[390721165,1760130638032,-159.35117251,0.00027379,2]
[390721168,1760130638042,-500.0,0.00027397,2]
[390721171,1760130638052,-160.47107984,0.00027397,2]
[390721174,1760130638061,-151.0,0.00027479,2]
[390721176,1760130638071,-330.54241822,0.00027479,2]
[390721178,1760130638080,-151.0,0.00027479,2]
[390721181,1760130638090,-151.0,0.00027479,2]
[390721185,1760130638100,-10572.96241187,0.00027479,2]
[390721188,1760130638110,-168.0,0.00027745,2]
[390721191,1760130638120,-500.0,0.00027785,60]
[390721194,1760130638129,-168.0,0.0002792,2]
[390721198,1760130638139,-247.083,0.00028207,19]
[390721201,1760130638149,-809.40660735,0.00028207,2]
[390721204,1760130638158,-159.3511725,0.00028354,2]
[390721208,1760130638167,-167.91508195,0.00028582,2]
[390721210,1760130638177,-500.0,0.00028588,7]
[390721212,1760130638186,-195.5647565,0.00028603,30]
[390721215,1760130638197,-351.4045568,0.00028603,30]
[390721219,1760130638206,-291.4016223,0.00028603,30]
[390721222,1760130638216,-588.2885567,0.00028603,30]
[390721225,1760130638227,-588.2885567,0.00028603,30]
[390721228,1760130638240,-189.6925741,0.00028603,30]
[390721230,1760130638250,-570.4589479,0.00028603,30]
[390721232,1760130638260,-411.0,0.00028621,2]
[390721234,1760130638273,-167.91508193,0.00028627,2]
[390721236,1760130638284,-1357.38,0.00028662,10]
[390721238,1760130638294,-1502.17,0.00028662,10]
[390721240,1760130638305,-1478.04,0.00028662,10]
[390721242,1760130638315,-1231.7,0.00028662,10]
[390721244,1760130638324,-1026.42,0.00028662,10]
[390721246,1760130638334,-316.10292333,0.00028671,2]
[390721249,1760130638343,-222.73827502,0.00028671,2]
[390721251,1760130638353,-500.0,0.00028671,2]
[390721253,1760130638362,-500.0,0.00028671,2]
[390721255,1760130638372,-304.68869314,0.00028671,2]
[390721257,1760130638382,-500.0,0.00028671,2]
[390721259,1760130638391,-247722.35724293,0.00028672,2]
[390721262,1760130638405,-328500.00090521,0.00028672,2]
[390721264,1760130638421,-345.64,0.00028672,2]
[390721268,1760130638454,-4280.07093308,0.00028672,2]
[390721272,1760130638465,-4655.81820216,0.00028672,2]
[390721278,1760130638517,-349.25551963,0.00028672,2]
[390721285,1760130638549,-22836.72655462,0.00028672,2]
[390721288,1760130638561,-905.68,0.00028672,2]
[390721291,1760130638581,-80100.00000289,0.00028672,2]
[390721296,1760130638623,-13243.19619559,0.00028672,2]
[390721299,1760130638634,-10790.79492938,0.00028672,2]
[390721301,1760130638646,-10773.45482463,0.00028672,2]
[390722006,1760130645912,-160.0,0.00024902,2]
[390722009,1760130645922,-500.0,0.00028662,10]
[390722013,1760130645931,-2090.0517389,0.00028672,2]
[390722020,1760130645943,-583.03425735,0.00028672,2]
[390722073,1760130646015,-11405.76281263,0.00028672,2]
[390722079,1760130646025,-13194.23718737,0.00028672,2]
[390722087,1760130646035,-999.2913491,0.00028672,2]
[390722094,1760130646047,-459.80140333,0.00028672,2]
[390722101,1760130646058,-4775.06594425,0.00028672,2]
[390722107,1760130646069,-1830.13870717,0.00028672,2]
[390722110,1760130646080,-28230.045,0.00028672,2]
[390722139,1760130646290,-1921.44208133,0.00028672,2]
[390722142,1760130646303,-42412.23606695,0.00028672,2]
[390722145,1760130646314,-13403.1796771,0.00028672,2]
[390722147,1760130646324,-167.91508193,0.00028672,2]
[390722150,1760130646334,-151.0,0.00028672,30]
[390722152,1760130646344,-154.969931,0.00028672,30]
[390722154,1760130646354,-151.0,0.00028672,30]
[390722156,1760130646365,-151.0,0.00028672,30]
[390722158,1760130646376,-151.0,0.00028672,30]
[390722161,1760130646386,-279.768408,0.00028672,30]
[390722162,1760130646400,-151.0,0.00028672,30]
[390722165,1760130646420,-151.0,0.00028672,30]
[390722167,1760130646432,-151.0,0.00028672,30]
[390722169,1760130646443,-59.62201343,0.00028672,30]
[390722171,1760130646464,-91.37798657,0.00028672,30]
[390722173,1760130646475,-151.0,0.00028672,30]
[390722175,1760130646490,-151.0,0.00028672,30]
[390722177,1760130646500,-151.0,0.00028672,30]
[390722179,1760130646509,-151.0,0.00028672,30]
[390722182,1760130646520,-151.0,0.00028672,30]
[390722185,1760130646529,-151.0,0.00028672,30]
[390722188,1760130646539,-151.0,0.00028672,30]
[390722190,1760130646548,-151.0,0.00028672,30]
[390722192,1760130646558,-151.0,0.00028672,30]
[390722193,1760130646567,-151.0,0.00028672,30]
[390722194,1760130646577,-151.0,0.00028672,30]
[390722195,1760130646587,-151.0,0.00028672,30]
[390722196,1760130646596,-151.0,0.00028672,30]
[390722197,1760130646605,-220.214233,0.00028672,30]
[390722198,1760130646615,-421.935909,0.00028672,30]
[390722199,1760130646625,-421.935909,0.00028672,30]
[390722200,1760130646635,-421.935909,0.00028672,30]
[390722201,1760130646644,-394.856411,0.00028672,30]
[390722202,1760130646655,-27.079498,0.00028672,30]
[390722203,1760130646664,-421.935909,0.00028672,30]
[390722204,1760130646673,-421.935909,0.00028672,30]
[390722205,1760130646682,-421.935909,0.00028672,30]
[390722206,1760130646691,-421.935909,0.00028672,30]
[390722207,1760130646700,-151.0,0.00028672,30]
[390722208,1760130646710,-151.0,0.00028672,30]
[390722209,1760130646720,-151.0,0.00028672,30]
[390722210,1760130646730,-151.0,0.00028672,30]
[390722211,1760130646745,-151.0,0.00028672,30]
[390722212,1760130646755,-151.0,0.00028672,30]
[390722213,1760130646765,-151.0,0.00028672,30]
[390722214,1760130646774,-151.0,0.00028672,30]
[390722215,1760130646784,-151.0,0.00028672,30]
[390722216,1760130646794,-151.0,0.00028672,30]
[390722217,1760130646803,-151.0,0.00028672,30]
[390722218,1760130646812,-151.0,0.00028672,30]
[390722219,1760130646821,-151.0,0.00028672,30]
[390722220,1760130646831,-151.0,0.00028672,30]
[390722221,1760130646840,-151.0,0.00028672,30]
[390722222,1760130646849,-151.0,0.00028672,30]
[390722223,1760130646859,-151.0,0.00028672,30]
[390722225,1760130646869,-151.0,0.00028672,30]
[390722226,1760130646878,-151.0,0.00028672,30]
[390722227,1760130646888,-151.0,0.00028672,30]
[390722228,1760130646899,-151.0,0.00028672,30]
[390722229,1760130646908,-151.0,0.00028672,30]
[390722231,1760130646917,-151.0,0.00028672,30]
[390722233,1760130646926,-500.0,0.00028673,5]
[390722236,1760130646935,-500.0,0.00028673,5]
[390722239,1760130646944,-500.0,0.00028673,5]
[390722241,1760130646952,-54758.176873,0.00028682,2]
[390722245,1760130646963,-1078.82769825,0.00028682,2]
[390722247,1760130646974,-60000.0,0.00028682,2]
[390722252,1760130646997,-22095.0,0.00028682,2]
[390722256,1760130647009,-59800.000006,0.00028682,2]
[390722259,1760130647022,-25555.1765,0.00028682,2]
[390722263,1760130647033,-146712.81892275,0.00028682,2]
[390722266,1760130647042,-151.0,0.00028682,30]
[390722270,1760130647052,-151.0,0.00028682,30]
[390722272,1760130647061,-151.0,0.00028682,30]
[390722275,1760130647070,-151.0,0.00028682,30]
[390722278,1760130647080,-151.0,0.00028682,30]
[390722281,1760130647090,-151.0,0.00028682,30]
[390722284,1760130647098,-151.0,0.00028682,30]
[390722286,1760130647107,-151.0,0.00028682,30]
[390722289,1760130647116,-151.0,0.00028682,30]
[390722292,1760130647126,-151.0,0.00028682,30]
[390722294,1760130647135,-151.0,0.00028682,30]
[390722296,1760130647144,-151.0,0.00028682,30]
[390722298,1760130647152,-151.0,0.00028682,30]
[390722300,1760130647160,-151.0,0.00028682,30]
[390722302,1760130647169,-151.0,0.00028682,30]
[390722304,1760130647178,-151.0,0.00028682,30]
[390722306,1760130647186,-151.0,0.00028682,30]
[390722308,1760130647195,-151.0,0.00028682,30]
[390722310,1760130647205,-151.0,0.00028682,30]
[390722311,1760130647214,-151.0,0.00028682,30]
[390722313,1760130647223,-151.0,0.00028682,30]
[390722315,1760130647232,-151.0,0.00028682,30]
[390722317,1760130647247,-151.0,0.00028682,30]
[390722319,1760130647256,-151.0,0.00028682,30]
[390722321,1760130647266,-151.0,0.00028682,30]
[390722323,1760130647275,-151.0,0.00028682,30]
[390722324,1760130647284,-151.0,0.00028682,30]
[390722325,1760130647293,-151.0,0.00028682,30]
[390722326,1760130647302,-151.0,0.00028682,30]
[390722327,1760130647312,-151.0,0.00028682,30]
[390722328,1760130647321,-151.0,0.00028682,30]
[390722329,1760130647331,-151.0,0.00028682,30]
[390722330,1760130647340,-151.0,0.00028682,30]
[390722331,1760130647349,-151.0,0.00028682,30]
[390722332,1760130647358,-151.0,0.00028682,30]
[390722333,1760130647367,-151.0,0.00028682,30]
[390722334,1760130647375,-151.0,0.00028682,30]
[390722335,1760130647385,-151.0,0.00028682,30]
[390722336,1760130647394,-151.0,0.00028682,30]
[390722337,1760130647408,-151.0,0.00028682,30]
[390722338,1760130647419,-151.0,0.00028682,30]
[390722339,1760130647431,-151.0,0.00028682,30]
[390722340,1760130647440,-151.0,0.00028682,30]
[390722341,1760130647453,-151.0,0.00028682,30]
[390722342,1760130647462,-151.0,0.00028682,30]
[390722343,1760130647471,-151.0,0.00028682,30]
[390722344,1760130647480,-151.0,0.00028682,30]
[390722345,1760130647492,-151.0,0.00028682,30]
[390722346,1760130647502,-151.0,0.00028682,30]
[390722347,1760130647512,-151.0,0.00028682,30]
[390722348,1760130647521,-151.0,0.00028682,30]
[390722349,1760130647531,-151.0,0.00028682,30]
[390722350,1760130647541,-151.0,0.00028682,30]
[390722351,1760130647550,-151.0,0.00028682,30]
[390722352,1760130647559,-151.0,0.00028682,30]
[390722353,1760130647568,-151.0,0.00028682,30]
[390722354,1760130647577,-151.0,0.00028682,30]
[390722355,1760130647586,-151.0,0.00028682,30]
[390722356,1760130647596,-151.0,0.00028682,30]
[390722357,1760130647605,-151.0,0.00028682,30]
[390722358,1760130647615,-151.0,0.00028682,30]
[390722359,1760130647626,-151.0,0.00028682,30]
[390722360,1760130647635,-151.0,0.00028682,30]
[390722361,1760130647644,-151.0,0.00028682,30]
[390722362,1760130647653,-151.0,0.00028682,30]
[390722363,1760130647663,-151.0,0.00028682,30]
[390722364,1760130647672,-187.899138,0.00028682,30]
[390722365,1760130647682,-151.0,0.00028682,30]
[390722366,1760130647691,-151.0,0.00028682,30]
[390722367,1760130647701,-151.929403,0.00028682,30]
[390722368,1760130647710,-151.555572,0.00028682,30]
[390722369,1760130647723,-151.0,0.00028682,30]
[390722370,1760130647747,-151.0,0.00028682,30]
[390722371,1760130647756,-151.0,0.00028682,30]
[390722372,1760130647765,-151.0,0.00028682,30]
[390722373,1760130647775,-479.021299,0.00028682,30]
[390722374,1760130647785,-151.0,0.00028682,30]
[390722375,1760130647795,-479.021299,0.00028682,30]
[390722376,1760130647805,-2611.698316,0.00028682,30]
[390722377,1760130647814,-479.021299,0.00028682,30]
[390722378,1760130647825,-151.0,0.00028682,30]
[390722379,1760130647835,-2611.698316,0.00028682,30]
[390722380,1760130647845,-479.021299,0.00028682,30]
[390722381,1760130647854,-151.0,0.00028682,30]
[390722382,1760130647864,-2611.698316,0.00028682,30]
[390722383,1760130647874,-2611.698316,0.00028682,30]
[390722384,1760130647883,-151.0,0.00028682,30]
[390722385,1760130647893,-151.0,0.00028682,30]
[390722386,1760130647902,-151.0,0.00028682,30]
[390722387,1760130647912,-151.0,0.00028682,30]
[390722388,1760130647921,-235.012662,0.00028682,30]
[390722389,1760130647931,-235.012662,0.00028682,30]
[390722390,1760130647941,-235.012662,0.00028682,30]
[390722391,1760130647951,-235.012662,0.00028682,30]
[390722392,1760130647961,-150.92163929,0.00028682,7]
[390722393,1760130647972,-151.0,0.00028682,15]
[390722394,1760130647982,-151.0,0.00028682,15]
[390722395,1760130647996,-151.0,0.00028682,30]
[390722396,1760130648005,-151.0,0.00028682,15]
[390722397,1760130648015,-151.0,0.00028682,30]
[390722398,1760130648024,-151.0,0.00028682,30]
[390722399,1760130648034,-151.0,0.00028682,30]
[390722400,1760130648043,-151.0,0.00028682,30]
[390722401,1760130648052,-151.0,0.00028682,30]
[390722402,1760130648062,-151.0,0.00028682,30]
[390722403,1760130648071,-151.0,0.00028682,30]
[390722404,1760130648080,-151.0,0.00028682,30]
[390722405,1760130648089,-151.0,0.00028682,30]
[390722407,1760130648098,-151.0,0.00028682,30]
[390722408,1760130648107,-151.0,0.00028682,30]
[390722409,1760130648116,-151.0,0.00028682,30]
[390722411,1760130648126,-151.0,0.00028682,30]
[390722412,1760130648135,-151.321248,0.00028682,30]
[390722413,1760130648144,-421.935909,0.00028682,30]
[390722415,1760130648153,-421.935909,0.00028682,30]
[390722416,1760130648162,-421.935909,0.00028682,30]
[390722418,1760130648171,-421.935909,0.00028682,30]
[390722419,1760130648180,-421.935909,0.00028682,30]
[390722420,1760130648189,-421.935909,0.00028682,30]
[390722421,1760130648199,-421.935909,0.00028682,30]
[390722422,1760130648208,-421.935909,0.00028682,30]
[390722424,1760130648217,-151.0,0.00028682,30]
[390722426,1760130648226,-301.99999998,0.00028682,30]
[390722428,1760130648240,-151.0,0.00028682,30]
[390722430,1760130648249,-151.0,0.00028682,30]
[390722432,1760130648258,-151.0,0.00028682,30]
[390722433,1760130648268,-151.0,0.00028682,30]
[390722434,1760130648278,-239.076468,0.00028682,30]
[390722435,1760130648288,-157.423027,0.00028682,30]
[390722436,1760130648298,-151.0,0.00028682,30]
[390722437,1760130648308,-151.0,0.00028682,30]
[390722439,1760130648318,-151.0,0.00028682,30]
[390722441,1760130648328,-151.0,0.00028682,30]
[390722443,1760130648339,-151.0,0.00028682,30]
[390722445,1760130648348,-151.0,0.00028682,30]
[390722447,1760130648358,-151.0,0.00028682,30]
[390722449,1760130648368,-277.703015,0.00028682,30]
[390722451,1760130648377,-151.0,0.00028682,30]
[390722453,1760130648386,-151.0,0.00028682,30]
[390722455,1760130648396,-151.0,0.00028682,30]
[390722457,1760130648405,-151.0,0.00028682,30]
[390722459,1760130648414,-151.0,0.00028682,30]
[390722461,1760130648427,-250.402368,0.00028682,30]
[390722463,1760130648437,-13403.1796771,0.00028682,2]
[390722465,1760130648447,-28736.67362213,0.00028692,3]
[390722480,1760130648586,-151.0,0.00028692,30]
[390722482,1760130648596,-151.0,0.00028692,30]
[390722484,1760130648605,-151.0,0.00028692,30]
[390722486,1760130648618,-151.0,0.00028692,30]
[390722488,1760130648628,-151.0,0.00028692,30]
[390722490,1760130648637,-151.0,0.00028692,30]
[390722492,1760130648646,-151.0,0.00028692,30]
[390722494,1760130648656,-151.0,0.00028692,30]
[390722496,1760130648665,-151.659666,0.00028692,30]
[390722498,1760130648674,-236.14567,0.00028692,30]
[390722500,1760130648684,-151.0,0.00028692,2]
[390722502,1760130648695,-236.14567,0.00028692,30]
[390722504,1760130648704,-236.14567,0.00028692,30]
[390722506,1760130648714,-151.0,0.00028692,30]
[390722508,1760130648724,-236.14567,0.00028692,30]
[390722510,1760130648733,-151.0,0.00028692,30]
[390722512,1760130648744,-151.0,0.00028692,30]
[390722514,1760130648754,-151.0,0.00028692,30]
[390722516,1760130648763,-151.0,0.00028692,30]
[390722518,1760130648775,-151.0,0.00028692,30]
[390722520,1760130648785,-151.0,0.00028692,30]
[390722522,1760130648795,-151.0,0.00028692,30]
[390722524,1760130648805,-151.0,0.00028692,30]
[390722526,1760130648815,-151.0,0.00028692,30]
[390722528,1760130648825,-151.0,0.00028692,30]
[390722530,1760130648834,-151.0,0.00028692,30]
[390722532,1760130648843,-151.0,0.00028692,30]
[390722534,1760130648852,-151.0,0.00028692,30]
[390722536,1760130648861,-151.0,0.00028692,30]
[390722538,1760130648871,-151.0,0.00028692,30]
[390722540,1760130648880,-151.0,0.00028692,30]
[390722542,1760130648889,-1000.0,0.00028692,2]
[390722544,1760130648899,-1000.0,0.00028692,2]
[390722545,1760130648909,-1000.0,0.00028692,2]
[390722547,1760130648918,-1000.0,0.00028692,2]
[390722549,1760130648927,-363.4371736,0.00028692,30]
[390722567,1760130649085,-115.5841254,0.00028692,30]
[390722569,1760130649094,-1000.0,0.00028692,2]
[390722571,1760130649106,-479.021299,0.00028692,30]
[390722573,1760130649116,-1000.0,0.00028692,2]
[390722575,1760130649125,-151.0,0.00028692,30]
[390722577,1760130649134,-1000.0,0.00028692,2]
[390722579,1760130649143,-1000.0,0.00028692,2]
[390722581,1760130649153,-479.021299,0.00028692,30]